bitfinex/quotes_BTCUSD_20240719
["timestamp","ask_amount","ask_price","bid_price","bid_amount"]
[1721431301237,1.37853478,66886.0,66885.0,0.06520001]
[1721431301457,1.39253478,66886.0,66885.0,0.06520001]
[1721431301649,1.40653506,66886.0,66885.0,0.06520001]
[1721431302503,1.35653506,66886.0,66885.0,0.06520001]
[1721431302763,1.44153506,66886.0,66885.0,0.06520001]
[1721431302963,0.58791103,66886.0,66885.0,0.14410001]
[1721431303171,0.67731182,66886.0,66885.0,0.14410001]
[1721431303337,0.58791103,66886.0,66885.0,0.14410001]
[1721431303673,1.26652077,66886.0,66885.0,0.14410001]
[1721431303903,1.35592156,66886.0,66885.0,0.14410001]
[1721431304166,1.36992156,66886.0,66885.0,0.14410001]
[1721431304276,1.34192156,66886.0,66885.0,0.14410001]
[1721431304757,1.50490296,66886.0,66885.0,0.06520001]
[1721431304987,1.51922077,66886.0,66885.0,1e-08]
[1721431305154,1.50522077,66886.0,66885.0,1e-08]
[1721431305330,1.47679091,66886.0,66885.0,1e-08]
[1721431305536,1.5492466,66886.0,66885.0,1e-08]
[1721431305750,1.4642466,66886.0,66885.0,1e-08]
[1721431306135,1.61859617,66886.0,66885.0,1e-08]
[1721431306566,1.59187034,66886.0,66885.0,1e-08]
[1721431306740,1.55687034,66886.0,66885.0,1e-08]
[1721431306962,1.74521132,66886.0,66885.0,1e-08]
[1721431307549,0.942011,66878.0,66877.0,0.04931939]
[1721431307765,1.33763277,66878.0,66877.0,0.04931939]
[1721431307961,0.672895,66875.0,66874.0,0.155196]
[1721431308250,0.672895,66875.0,66874.0,0.805196]
[1721431308251,0.82727674,66875.0,66874.0,0.805196]
[1721431308451,0.91227674,66875.0,66874.0,0.805196]
[1721431308658,0.91227674,66875.0,66874.0,0.81336249]
[1721431308861,0.82727674,66875.0,66874.0,0.81336249]
[1721431309121,0.91227674,66875.0,66874.0,0.81336249]
[1721431309321,0.82727674,66875.0,66874.0,0.66236249]
[1721431309636,0.91227674,66875.0,66874.0,0.66236249]
[1721431310929,0.92627674,66875.0,66874.0,0.66236249]
[1721431311476,1.19543474,66875.0,66874.0,0.66236249]
[1721431312902,1.24011971,66875.0,66874.0,0.01236249]
[1721431313107,1.24011971,66875.0,66874.0,0.004196]
[1721431313108,1.34011971,66875.0,66874.0,0.004196]
[1721431314158,1.33411971,66875.0,66874.0,0.004196]
[1721431314369,1.28943474,66875.0,66874.0,0.004196]
[1721431314575,1.34811043,66875.0,66874.0,0.004196]
[1721431317659,1.44247206,66875.0,66874.0,0.004196]
[1721431317873,1.44247288,66875.0,66874.0,0.004196]
[1721431318077,1.39779637,66875.0,66874.0,0.554196]
[1721431318493,1.30343474,66875.0,66874.0,0.554196]
[1721431318652,1.30343474,66875.0,66874.0,0.56236249]
[1721431319949,1.31219715,66875.0,66874.0,0.56236249]
[1721431320147,1.35687145,66875.0,66874.0,0.56236249]
[1721431320839,1.35687146,66875.0,66874.0,0.56236249]
[1721431321775,1.27187146,66875.0,66874.0,0.56236249]
[1721431323372,1.31219715,66875.0,66874.0,0.56236249]
[1721431323579,1.35686992,66875.0,66874.0,0.56236249]
[1721431323778,1.31219715,66875.0,66874.0,0.56236249]
[1721431323980,1.45780608,66875.0,66874.0,0.56236249]
[1721431324378,1.36846053,66875.0,66874.0,0.56236249]
[1721431325462,1.36846053,66875.0,66874.0,0.01236249]
[1721431325832,1.36846053,66875.0,66874.0,0.004196]
[1721431326236,1.42936053,66875.0,66874.0,0.004196]
[1721431326357,1.36846053,66875.0,66874.0,0.004196]
[1721431327207,1.48008211,66875.0,66874.0,0.004196]
[1721431327631,0.70238437,66875.0,66874.0,0.141696]
[1721431327830,0.26534141,66875.0,66874.0,0.141696]
[1721431328056,0.53449941,66875.0,66874.0,0.8060656]
[1721431328217,0.26534141,66875.0,66874.0,0.8060656]
[1721431328429,0.26534141,66875.0,66874.0,0.79986249]
[1721431328592,0.53449941,66875.0,66874.0,0.79986249]
[1721431328787,0.53449941,66875.0,66874.0,0.14986249]
[1721431329362,0.53449941,66875.0,66874.0,0.141696]
[1721431335093,0.43449941,66875.0,66874.0,0.141696]
[1721431336131,0.43449941,66875.0,66874.0,0.14986249]
[1721431336805,0.45794209,66875.0,66874.0,0.14986249]
[1721431337015,0.45794209,66875.0,66874.0,0.80986249]
[1721431337176,0.45794209,66875.0,66874.0,0.14986249]
[1721431339049,0.45794209,66875.0,66874.0,0.71986249]
[1721431343242,0.05420509,66875.0,66874.0,0.71986249]
[1721431344057,0.18878409,66875.0,66874.0,0.71986249]
[1721431345576,0.27378409,66875.0,66874.0,0.71986249]
[1721431346658,0.54294209,66875.0,66874.0,0.71986249]
[1721431346858,0.81210009,66875.0,66874.0,0.64306249]
[1721431346976,0.54294209,66875.0,66874.0,0.64306249]
[1721431352355,0.54378209,66875.0,66874.0,0.64306249]
[1721431352762,0.54378209,66875.0,66874.0,0.634896]
[1721431352979,0.54378209,66875.0,66874.0,0.63837204]
[1721431353129,0.54378209,66875.0,66874.0,0.64306249]
[1721431360498,0.54378209,66875.0,66874.0,0.63806249]
[1721431360693,0.45878209,66875.0,66874.0,0.63806249]
[1721431360939,0.45878209,66875.0,66874.0,0.83852229]
[1721431362689,0.45878209,66875.0,66874.0,0.76222157]
[1721431365855,0.45878209,66875.0,66874.0,0.76222175]
[1721431372530,0.45878209,66875.0,66874.0,0.76222141]
[1721431374380,1.28947983,66875.0,66874.0,0.70232541]
[1721431374583,1.34571692,66875.0,66874.0,0.57816649]
[1721431374988,1.43499205,66875.0,66874.0,0.57816649]
[1721431375638,1.43504921,66875.0,66874.0,0.57816649]
[1721431376394,1.34571692,66875.0,66874.0,0.57816649]
[1721431378663,1.34571692,66875.0,66874.0,0.56316649]
[1721431379731,1.43504389,66875.0,66874.0,0.56316649]
[1721431381026,1.10368589,66875.0,66874.0,0.56316649]
[1721431381224,1.08135417,66875.0,66874.0,0.56316649]
[1721431381408,0.58201443,66875.0,66874.0,0.59657869]
[1721431381608,0.85117243,66875.0,66874.0,0.59657869]
[1721431381811,0.85117243,66875.0,66874.0,0.56316649]
[1721431383265,0.79493534,66875.0,66874.0,0.56316649]
[1721431383874,0.79493565,66875.0,66874.0,0.56316649]
[1721431384090,0.79493565,66875.0,66874.0,0.00816649]
[1721431384091,1.14356374,66875.0,66874.0,0.00816649]
[1721431384425,1.1658956,66875.0,66874.0,0.680924]
[1721431384646,1.43504646,66875.0,66874.0,0.000924]
[1721431384855,1.57630195,66875.0,66874.0,0.00561445]
[1721431385056,1.48698167,66875.0,66874.0,0.000924]
[1721431385426,1.57629454,66875.0,66874.0,0.000924]
[1721431385688,1.67629454,66875.0,66874.0,0.000924]
[1721431385845,1.53503905,66875.0,66874.0,0.000924]
[1721431387480,1.44572618,66875.0,66874.0,0.000924]
[1721431388691,1.55735305,66875.0,66874.0,0.000924]
[1721431389373,1.44572618,66875.0,66874.0,0.000924]
[1721431390749,1.53500984,66875.0,66874.0,0.000924]
[1721431390877,1.39700984,66875.0,66874.0,0.000924]
[1721431391085,1.45968999,66875.0,66874.0,0.000924]
[1721431391504,1.33647983,66875.0,66874.0,0.000924]
[1721431395065,1.33647983,66875.0,66874.0,0.680924]
[1721431395066,0.82794009,66875.0,66874.0,0.680924]
[1721431395349,0.91294009,66875.0,66874.0,0.680924]
[1721431395548,0.91294009,66875.0,66874.0,0.68909049]
[1721431395784,0.81294009,66875.0,66874.0,0.68909049]
[1721431400225,0.8575845,66875.0,66874.0,0.68909049]
[1721431400930,0.81294009,66875.0,66874.0,0.68909049]
[1721431401085,0.85758259,66875.0,66874.0,0.68909049]
[1721431403405,1.00098259,66875.0,66874.0,0.68909049]
[1721431403586,1.00098259,66875.0,66874.0,0.680924]
[1721431403786,1.00098259,66875.0,66874.0,0.68440004]
[1721431404012,1.00098259,66875.0,66874.0,0.68909049]
[1721431405402,1.07953925,66875.0,66874.0,0.68909049]
[1721431405855,0.9275755,66875.0,66874.0,0.68909049]
[1721431406084,0.9311364,66875.0,66874.0,0.68909049]
[1721431407565,0.93113619,66875.0,66874.0,0.68909049]
[1721431408271,1.01613619,66875.0,66874.0,0.68909049]
[1721431410731,1.01613699,66875.0,66874.0,0.68909049]
[1721431411283,0.9491755,66875.0,66874.0,0.68909049]
[1721431413230,1.37271524,66875.0,66874.0,0.68909049]
[1721431415735,1.02355724,66875.0,66874.0,0.68909049]
[1721431415932,1.02355724,66875.0,66874.0,0.75349049]
[1721431416150,0.1112805,66875.0,66874.0,0.83702954]
[1721431416385,0.03160241,66875.0,66874.0,0.93349049]
[1721431417167,0.02360241,66875.0,66874.0,1.01339049]
[1721431417910,0.00960241,66875.0,66874.0,1.01339049]
[1721431418409,0.02360241,66875.0,66874.0,1.01339049]
[1721431418629,0.02860241,66875.0,66874.0,1.01339049]
[1721431423567,0.02860241,66875.0,66874.0,1.27946078]
[1721431423809,0.02860241,66875.0,66874.0,1.41404145]
[1721431424767,0.02860241,66875.0,66874.0,1.2721261]
[1721431430235,0.02860241,66875.0,66874.0,1.14797149]
[1721431430453,0.02860241,66875.0,66874.0,1.27212421]
[1721431430795,0.02860241,66875.0,66874.0,1.14797149]
[1721431430992,0.02860241,66875.0,66874.0,1.27212421]
[1721431433306,0.02860241,66875.0,66874.0,1.81044821]
[1721431433307,0.01984,66875.0,66874.0,1.81044821]
[1721431433563,0.01984,66875.0,66874.0,1.68629549]
[1721431433747,0.01984,66875.0,66874.0,1.81044068]
[1721431434688,0.00084,66875.0,66874.0,1.81044068]
[1721431434887,0.01484,66875.0,66874.0,1.81044068]
[1721431435045,0.01584,66875.0,66874.0,1.96479025]
[1721431435249,0.00184,66875.0,66874.0,1.96479025]
[1721431435427,0.00084,66875.0,66874.0,1.96479025]
[1721431435630,0.01484,66875.0,66874.0,1.96479025]
[1721431436860,0.01484,66875.0,66874.0,1.84064506]
[1721431436980,0.01484,66875.0,66874.0,1.96479008]
[1721431437564,0.01484,66875.0,66874.0,1.81044051]
[1721431442462,0.01484,66875.0,66874.0,1.68629549]
[1721431442669,0.01484,66875.0,66874.0,1.81043987]
[1721431443052,0.01484,66875.0,66874.0,1.68629549]
[1721431443253,0.01484,66875.0,66874.0,1.81043991]
[1721431443450,0.01484,66875.0,66874.0,0.99323491]
[1721431443451,0.149419,66875.0,66874.0,0.99323491]
[1721431443652,0.01484,66875.0,66874.0,0.99323491]
[1721431445791,0.01484,66875.0,66874.0,0.86909049]
[1721431446002,0.01484,66875.0,66874.0,0.9932409]
[1721431446207,0.01484,66875.0,66874.0,0.6132409]
[1721431449014,0.01484,66875.0,66874.0,0.48909049]
[1721431449213,0.149419,66875.0,66874.0,0.61324106]
[1721431452354,0.149419,66875.0,66874.0,0.48909049]
[1721431452489,0.149419,66875.0,66874.0,0.61323787]
[1721431455629,0.149419,66875.0,66874.0,0.61324107]
[1721431459023,0.149419,66875.0,66874.0,0.61324103]
[1721431459794,0.418577,66875.0,66874.0,0.61324103]
[1721431460560,0.764235,66875.0,66874.0,0.61324103]
[1721431460790,1.096793,66875.0,66874.0,0.61324103]
[1721431461229,1.096793,66875.0,66874.0,0.61548294]
[1721431461230,1.181793,66875.0,66874.0,0.61548294]
[1721431461398,1.50721156,66875.0,66874.0,0.0113324]
[1721431461626,1.57421422,66875.0,66874.0,0.0113324]
[1721431461827,1.59654844,66875.0,66874.0,0.000924]
[1721431462041,1.59654167,66875.0,66874.0,0.000924]
[1721431462231,1.77325594,66875.0,66874.0,0.000924]
[1721431462430,1.6615933,66875.0,66874.0,0.000924]
[1721431463461,1.6475933,66875.0,66874.0,0.000924]
[1721431463770,1.6695933,66875.0,66874.0,0.000924]
[1721431465623,1.78111411,66875.0,66874.0,0.000924]
[1721431466379,1.6695933,66875.0,66874.0,0.000924]
[1721431466809,1.104793,66875.0,66874.0,0.000924]
[1721431467135,1.189793,66875.0,66874.0,0.000924]
[1721431469306,1.23439339,66875.0,66874.0,0.000924]
[1721431471528,1.189793,66875.0,66874.0,0.000924]
[1721431471959,1.23438198,66875.0,66874.0,0.000924]
[1721431475179,1.23437065,66875.0,66874.0,0.000924]
[1721431475380,1.189793,66875.0,66874.0,0.000924]
[1721431477062,1.2132375,66875.0,66874.0,0.000924]
[1721431478587,1.1498375,66875.0,66874.0,0.000924]
[1721431488542,1.25065723,66875.0,66874.0,0.000924]
[1721431489550,1.25066181,66875.0,66874.0,0.000924]
[1721431490365,1.31246181,66875.0,66874.0,0.000924]
[1721431490662,1.26788959,66875.0,66874.0,0.000924]
[1721431496515,1.33476868,66875.0,66874.0,0.000924]
[1721431498310,1.33478131,66875.0,66874.0,0.000924]
[1721431499548,1.26788959,66875.0,66874.0,0.000924]
[1721431500022,1.24444509,66875.0,66874.0,0.000924]
[1721431502462,1.33365971,66875.0,66874.0,0.000924]
[1721431503712,1.61214439,66875.0,66874.0,0.000924]
[1721431503975,1.61214439,66875.0,66864.0,0.009207]
[1721431503976,0.05,66866.0,66864.0,0.009207]
[1721431504055,0.413315,66861.0,66860.0,0.0498429]
[1721431504264,1.43378462,66861.0,66860.0,0.0498429]
[1721431504479,1.43378462,66861.0,66849.0,0.0606]
[1721431504480,0.673047,66860.0,66849.0,0.0606]
[1721431504708,1.26439928,66860.0,66850.0,0.002794]
[1721431504915,1.23519983,66860.0,66850.0,0.002794]
[1721431505487,1.3466595,66860.0,66850.0,0.002794]
[1721431506018,1.3466595,66860.0,66848.0,0.002794]
[1721431506440,1.24919983,66860.0,66848.0,0.002794]
[1721431506987,1.26319983,66860.0,66848.0,0.002794]
[1721431507385,1.35234281,66860.0,66848.0,0.002794]
[1721431509372,1.27378941,66860.0,66848.0,0.002794]
[1721431509577,1.63916674,66860.0,66848.0,0.002794]
[1721431509773,1.63916674,66860.0,66846.0,0.04994242]
[1721431509774,1.78460249,66860.0,66846.0,0.04994242]
[1721431510015,1.84980908,66860.0,66845.0,0.009207]
[1721431510218,2.21902808,66860.0,66845.0,0.009207]
[1721431510390,1.085078,66852.0,66845.0,0.009207]
[1721431510585,1.26145974,66852.0,66845.0,0.009207]
[1721431512293,1.28345974,66852.0,66845.0,0.009207]
[1721431513155,1.26145974,66852.0,66845.0,0.009207]
[1721431513483,1.28945974,66852.0,66845.0,0.009207]
[1721431513859,1.27545974,66852.0,66845.0,0.009207]
[1721431514098,1.26145974,66852.0,66845.0,0.009207]
[1721431515326,1.28945974,66852.0,66845.0,0.009207]
[1721431517204,1.29840714,66852.0,66845.0,0.009207]
[1721431519360,1.29840714,66852.0,66847.0,0.0601]
[1721431520303,1.21870714,66852.0,66847.0,0.0601]
[1721431527012,1.13370714,66852.0,66847.0,0.0601]
[1721431527189,0.94945614,66852.0,66847.0,0.0601]
[1721431532877,0.0369474,66852.0,66851.0,0.1452]
[1721431533032,0.0369474,66852.0,66851.0,0.279827]
[1721431533226,0.0369474,66852.0,66851.0,1.14586227]
[1721431533496,0.0369474,66852.0,66851.0,1.30364261]
[1721431533700,0.0089474,66852.0,66851.0,1.30364261]
[1721431534078,0.134609,66860.0,66856.0,0.0651]
[1721431534332,0.134609,66860.0,66857.0,0.002794]
[1721431534564,0.134609,66860.0,66857.0,0.00951754]
[1721431534813,0.657195,66867.0,66857.0,0.00951754]
[1721431534814,0.269199,66866.0,66859.0,0.1482]
[1721431535068,0.1346,66865.0,66860.0,0.137403]
[1721431535315,0.1346,66865.0,66861.0,0.05937658]
[1721431535576,0.1346,66865.0,66862.0,0.067894]
[1721431536109,0.00878225,66867.0,66863.0,0.00666681]
[1721431536340,0.00878225,66867.0,66864.0,0.085894]
[1721431536595,0.085,66871.0,66864.0,0.220495]
[1721431536596,0.014,66865.0,66864.0,0.220495]
[1721431536869,0.014,66865.0,66864.0,0.22435836]
[1721431537124,0.134591,66869.0,66864.0,0.22435836]
[1721431537380,0.021,66865.0,66864.0,0.22435836]
[1721431537640,0.01,66865.0,66864.0,0.22435836]
[1721431537878,0.019,66865.0,66864.0,0.22435836]
[1721431538577,0.009,66865.0,66864.0,0.49356136]
[1721431538829,0.134589,66870.0,66865.0,0.134599]
[1721431539091,0.00901245,66871.0,66866.0,0.002794]
[1721431539326,0.00901245,66871.0,66869.0,0.13459]
[1721431539579,0.085,66873.0,66867.0,0.33728065]
[1721431539580,0.085,66873.0,66870.0,0.002794]
[1721431539855,0.085,66873.0,66870.0,0.00660064]
[1721431540119,0.219583,66873.0,66871.0,0.002794]
[1721431540358,0.085,66872.0,66871.0,0.00659119]
[1721431540600,0.085,66872.0,66868.0,0.002794]
[1721431540601,0.014,66871.0,66868.0,0.002794]
[1721431540844,0.085,66869.0,66868.0,0.002794]
[1721431543496,0.091,66869.0,66868.0,0.002794]
[1721431543723,0.097,66869.0,66868.0,0.002794]
[1721431546243,0.097,66869.0,66868.0,0.00941355]
[1721431546386,0.097,66869.0,66868.0,0.00661955]
[1721431550982,0.097,66869.0,66868.0,0.01012242]
[1721431551587,0.645574,66869.0,66868.0,0.01012242]
[1721431551870,0.134601,66865.0,66860.0,0.002794]
[1721431552071,0.085,66862.0,66860.0,0.002794]
[1721431552202,0.085,66862.0,66861.0,0.00668572]
[1721431552428,0.085,66862.0,66861.0,0.67668572]
[1721431554484,0.085,66862.0,66861.0,0.68221991]
[1721431554682,0.134604,66863.0,66861.0,0.68221991]
[1721431554899,0.134604,66863.0,66862.0,0.002794]
[1721431555106,0.134604,66863.0,66862.0,0.65632371]
[1721431555305,0.134604,66863.0,66862.0,0.65352971]
[1721431557438,0.134604,66863.0,66862.0,0.65452971]
[1721431557869,0.134604,66863.0,66862.0,0.65552971]
[1721431560095,0.22378643,66863.0,66862.0,0.65552971]
[1721431560932,0.41259243,66863.0,66862.0,0.65552971]
[1721431561290,0.41259243,66863.0,66862.0,0.66220598]
[1721431561490,0.14338543,66863.0,66862.0,0.66220598]
[1721431562690,0.14338543,66863.0,66862.0,0.78638434]
[1721431563295,0.41259243,66863.0,66862.0,0.78638434]
[1721431563529,0.49299243,66863.0,66862.0,0.78638434]
[1721431564671,0.49299243,66863.0,66862.0,0.78638433]
[1721431566019,0.41259243,66863.0,66862.0,0.78638433]
[1721431567180,0.41259243,66863.0,66862.0,0.84918433]
[1721431567181,0.00878243,66863.0,66862.0,0.84918433]
[1721431567349,0.1346,66865.0,66862.0,0.94942426]
[1721431567598,0.1346,66865.0,66863.0,0.12697235]
[1721431567813,0.1346,66865.0,66864.0,0.24100108]
[1721431568035,0.1346,66865.0,66864.0,0.24100053]
[1721431568252,0.1346,66865.0,66864.0,0.8641778]
[1721431568867,0.1356,66865.0,66864.0,0.8641778]
[1721431569073,0.1366,66865.0,66864.0,0.8641778]
[1721431569269,0.1356,66865.0,66864.0,0.8641778]
[1721431569666,0.003,66865.0,66864.0,0.8641778]
[1721431569982,0.003,66865.0,66864.0,0.98951948]
[1721431570386,0.003,66865.0,66864.0,0.98451948]
[1721431571368,0.003,66865.0,66864.0,0.86886244]
[1721431571780,0.406798,66865.0,66864.0,0.00352076]
[1721431571981,0.351899,66865.0,66860.0,0.002794]
[1721431572151,0.134604,66863.0,66860.0,0.562794]
[1721431572365,0.351899,66865.0,66860.0,0.562794]
[1721431572366,0.134601,66864.0,66860.0,0.562794]
[1721431573195,0.134601,66864.0,66860.0,0.563794]
[1721431574649,0.134601,66864.0,66860.0,0.562794]
[1721431575244,0.134601,66864.0,66861.0,0.00353419]
[1721431575423,0.134601,66864.0,66862.0,0.002794]
[1721431575624,0.134601,66864.0,66862.0,0.51632371]
[1721431575820,0.134601,66864.0,66863.0,0.00666681]
[1721431578414,0.134601,66864.0,66863.0,0.13084515]
[1721431578755,0.134601,66864.0,66863.0,0.13437039]
[1721431580607,0.134601,66864.0,66863.0,0.86437039]
[1721431581062,0.134601,66864.0,66863.0,0.74019205]
[1721431581256,0.134601,66864.0,66863.0,0.86437031]
[1721431583202,0.13544,66865.0,66863.0,0.94064074]
[1721431583381,0.13544,66865.0,66864.0,0.12697226]
[1721431583538,0.13544,66865.0,66864.0,0.12769902]
[1721431583766,0.13544,66865.0,66864.0,0.13435638]
[1721431584446,0.13544,66865.0,66864.0,0.13435639]
[1721431584919,0.13644,66865.0,66864.0,0.13435639]
[1721431585122,0.13744,66865.0,66864.0,0.13435639]
[1721431585494,0.13644,66865.0,66864.0,0.13435639]
[1721431585865,0.13744,66865.0,66864.0,0.13435639]
[1721431587507,0.13744,66865.0,66864.0,0.01017812]
[1721431587673,0.13744,66865.0,66864.0,0.13435639]
[1721431591054,0.406639,66865.0,66864.0,0.13435639]
[1721431591611,0.406639,66865.0,66864.0,0.12417827]
[1721431592408,0.45132777,66865.0,66864.0,0.12417827]
[1721431592613,0.59742777,66865.0,66864.0,0.12417827]
[1721431594122,0.134608,66861.0,66859.0,0.000924]
[1721431594292,0.134608,66861.0,66860.0,0.12417869]
[1721431594293,0.219608,66861.0,66860.0,0.12417869]
[1721431594618,0.219608,66861.0,66860.0,0.67441252]
[1721431595719,0.219608,66861.0,66860.0,0.67641252]
[1721431596701,0.134608,66861.0,66860.0,0.67641252]
[1721431597037,0.134608,66861.0,66860.0,0.55223383]
[1721431597176,0.134608,66861.0,66860.0,0.67641263]
[1721431597380,0.134608,66861.0,66860.0,0.67641268]
[1721431598248,0.215308,66861.0,66860.0,0.67941268]
[1721431600585,0.215308,66861.0,66860.0,0.55523383]
[1721431600724,0.215308,66861.0,66860.0,0.67941263]
[1721431601360,0.134608,66861.0,66860.0,0.76090819]
[1721431601559,0.269211,66862.0,66860.0,0.76090819]
[1721431601560,0.134605,66862.0,66860.0,0.76090819]
[1721431601740,0.134605,66862.0,66861.0,0.1269728]
[1721431601932,0.134605,66862.0,66861.0,0.6241788]
[1721431602301,0.134605,66862.0,66861.0,0.62771299]
[1721431602513,0.04470557,66864.0,66861.0,0.62771299]
[1721431602747,0.00084,66865.0,66862.0,0.1269728]
[1721431602917,0.13544,66865.0,66863.0,0.1241788]
[1721431603133,0.13544,66865.0,66864.0,0.1241788]
[1721431603346,0.13544,66865.0,66864.0,0.8441788]
[1721431603478,0.13544,66865.0,66864.0,0.84769956]
[1721431603862,0.13544,66865.0,66864.0,0.84769013]
[1721431604266,0.13644,66865.0,66864.0,0.84769013]
[1721431604691,0.13644,66865.0,66864.0,0.12769013]
[1721431605122,0.13644,66865.0,66864.0,0.19279013]
[1721431605368,0.18214183,66865.0,66864.0,0.19279013]
[1721431605820,0.18214183,66865.0,66864.0,0.12769013]
[1721431605950,0.18214183,66865.0,66864.0,0.13434749]
[1721431607158,0.18213842,66865.0,66864.0,0.13435583]
[1721431608720,0.26503842,66865.0,66864.0,0.13435583]
[1721431608941,0.26503842,66865.0,66864.0,0.12417771]
[1721431609110,0.22034,66865.0,66864.0,0.12769847]
[1721431609399,0.22034,66865.0,66864.0,0.13464833]
[1721431609584,0.22034,66865.0,66864.0,0.12417771]
[1721431609838,0.26503842,66865.0,66864.0,0.12417771]
[1721431610452,0.26503759,66865.0,66864.0,0.12417771]
[1721431613629,0.134602,66864.0,66860.0,0.003718]
[1721431613829,0.134602,66864.0,66861.0,0.12417764]
[1721431614027,0.134602,66864.0,66862.0,0.12697164]
[1721431614286,0.134602,66864.0,66863.0,0.12417764]
[1721431614485,0.134602,66864.0,66863.0,0.79417764]
[1721431616941,0.134602,66864.0,66863.0,0.67]
[1721431617151,0.134602,66864.0,66863.0,0.79417762]
[1721431620111,0.134602,66864.0,66863.0,0.67]
[1721431620315,0.134602,66864.0,66863.0,0.79417762]
[1721431621270,0.134602,66864.0,66863.0,0.80113693]
[1721431621885,0.279302,66864.0,66863.0,0.80113693]
[1721431622624,0.279302,66864.0,66863.0,0.67695931]
[1721431622768,0.279302,66864.0,66863.0,0.80113695]
[1721431623763,0.548505,66864.0,66863.0,0.80113695]
[1721431625201,0.486705,66864.0,66863.0,0.80113695]
[1721431627427,0.403805,66864.0,66863.0,0.80113695]
[1721431627807,0.04554055,66865.0,66864.0,0.198501]
[1721431628027,0.00084,66865.0,66864.0,1.27467564]
[1721431628230,0.00084,66865.0,66864.0,1.2788315]
[1721431629041,0.00084,66865.0,66864.0,1.15465386]
[1721431629250,0.00084,66865.0,66864.0,1.27881985]
[1721431629631,0.00184,66865.0,66864.0,1.2788192]
[1721431630985,0.00284,66865.0,66864.0,1.2788192]
[1721431632297,0.00284,66865.0,66864.0,1.27881781]
[1721431635783,0.00284,66865.0,66864.0,1.27881758]
[1721431636346,0.00284,66865.0,66864.0,1.70237015]
[1721431636553,0.00284,66865.0,66864.0,1.93445189]
[1721431636725,0.00284,66865.0,66864.0,2.20365489]
[1721431636933,0.00284,66865.0,66864.0,2.37262269]
[1721431637150,0.00284,66865.0,66864.0,2.20365489]
[1721431637525,0.00184,66865.0,66864.0,2.20717565]
[1721431638151,0.00084,66865.0,66864.0,2.47637865]
[1721431638353,0.00184,66865.0,66864.0,2.47837865]
[1721431638896,0.00184,66865.0,66864.0,2.47636325]
[1721431639098,0.00284,66865.0,66864.0,2.47836325]
[1721431639235,0.00184,66865.0,66864.0,2.47636325]
[1721431639419,0.00284,66865.0,66864.0,2.47936325]
[1721431639623,0.00384,66865.0,66864.0,2.53136325]
[1721431639822,0.00384,66865.0,66864.0,2.52836325]
[1721431639823,0.00284,66865.0,66864.0,2.52836325]
[1721431640270,0.00284,66865.0,66864.0,2.53136325]
[1721431640271,0.00384,66865.0,66864.0,2.53136325]
[1721431640694,0.00284,66865.0,66864.0,2.37401368]
[1721431641097,0.00084,66865.0,66864.0,2.37201368]
[1721431641481,0.00184,66865.0,66864.0,2.37401368]
[1721431641679,0.00184,66865.0,66864.0,2.52836325]
[1721431642081,0.00284,66865.0,66864.0,2.53136428]
[1721431642326,0.00184,66865.0,66864.0,2.52936428]
[1721431642542,0.00084,66865.0,66864.0,2.52636428]
[1721431642732,0.00284,66865.0,66864.0,2.53136428]
[1721431643483,0.00284,66865.0,66864.0,2.37701471]
[1721431644387,0.00184,66865.0,66864.0,2.37501471]
[1721431644588,0.00184,66865.0,66864.0,2.37701471]
[1721431644788,0.00284,66865.0,66864.0,2.37701471]
[1721431645050,0.00084,66865.0,66864.0,2.37201471]
[1721431645356,0.00284,66865.0,66864.0,2.53136392]
[1721431645545,0.00284,66865.0,66864.0,2.58136392]
[1721431645729,0.00284,66865.0,66864.0,2.53136392]
[1721431645906,0.00184,66865.0,66864.0,2.52836392]
[1721431646093,0.00184,66865.0,66864.0,2.52936392]
[1721431646715,0.00084,66865.0,66864.0,2.52636392]
[1721431646943,0.00184,66865.0,66864.0,2.52936392]
[1721431647741,0.00284,66865.0,66864.0,2.53136392]
[1721431648805,0.00284,66865.0,66864.0,2.53136326]
[1721431649085,0.00284,66865.0,66864.0,2.52636326]
[1721431649086,0.00084,66865.0,66864.0,2.52636326]
[1721431649288,0.00284,66865.0,66864.0,2.53136326]
[1721431652056,0.00284,66865.0,66864.0,2.53136327]
[1721431653842,0.00284,66865.0,66864.0,2.58136327]
[1721431655357,0.00284,66865.0,66864.0,2.58136308]
[1721431656058,0.00284,66865.0,66864.0,2.74949806]
[1721431657190,0.00284,66865.0,66864.0,3.06870106]
[1721431657344,0.00284,66865.0,66864.0,2.77641793]
[1721431657541,0.00084,66875.0,66874.0,1.042067]
[1721431657767,0.00084,66875.0,66874.0,2.35060638]
[1721431657973,0.00084,66875.0,66874.0,2.63009976]
[1721431658546,0.00084,66875.0,66874.0,2.63106269]
[1721431659643,0.00184,66875.0,66874.0,2.64506269]
[1721431659889,0.00084,66875.0,66874.0,2.68646785]
[1721431660249,0.00284,66875.0,66874.0,2.70346785]
[1721431660687,0.00284,66875.0,66874.0,2.63946785]
[1721431661493,0.00184,66875.0,66874.0,2.63646785]
[1721431661698,0.00184,66875.0,66874.0,2.34344728]
[1721431661892,0.00384,66875.0,66874.0,2.66465241]
[1721431662158,0.00184,66875.0,66874.0,2.65065241]
[1721431662361,0.00184,66875.0,66874.0,2.63665241]
[1721431662566,0.00184,66875.0,66874.0,2.65065241]
[1721431662842,0.00284,66875.0,66874.0,2.66465241]
[1721431664853,0.00284,66875.0,66874.0,2.54556342]
[1721431665268,0.00284,66875.0,66874.0,2.54556341]
[1721431665413,0.00284,66875.0,66874.0,2.71464969]
[1721431665613,0.00284,66875.0,66874.0,2.54556341]
[1721431666303,0.00284,66875.0,66874.0,2.71464969]
[1721431666511,0.00284,66875.0,66874.0,2.54556341]
[1721431666705,0.00284,66875.0,66874.0,2.54277501]
[1721431667687,0.00284,66875.0,66874.0,2.71186129]
[1721431667882,0.00284,66875.0,66874.0,2.54277501]
[1721431668506,0.00284,66875.0,66874.0,2.54277463]
[1721431669121,0.00284,66875.0,66874.0,2.54654612]
[1721431669328,0.00284,66875.0,66874.0,2.54277463]
[1721431669708,0.00284,66875.0,66874.0,2.54654612]
[1721431670513,0.00284,66875.0,66874.0,2.84561512]
[1721431670795,0.00284,66875.0,66874.0,2.86861512]
[1721431671568,0.00284,66875.0,66874.0,3.03777402]
[1721431671741,0.00284,66875.0,66874.0,2.86861372]
[1721431672373,0.00284,66875.0,66874.0,3.03766111]